[Event "GrandPrix_30.05"]
[Site "Chess.com"]
[Date "2020.05.30"]
[Round "5"]
[White "ZverevLev"]
[Black "ulkaf961"]
[Result "1-0"]
[WhiteElo "2117"]
[BlackElo "1957"]
[TimeControl "600+2"]
[EndTime "10:14:52 PDT"]
[Termination "ZverevLev won by resignation"]

1. e4 {[%clk 0:10:01.5]} 1... e6 {[%clk 0:10:00.3]} 2. d4 {[%clk 0:10:01]} 2...
d5 {[%clk 0:10:01.4]} 3. Nc3 {[%clk 0:10:00.4]} 3... Nf6 {[%clk 0:10:01.7]} 4.
Bg5 {[%clk 0:09:58.8]} 4... Be7 {[%clk 0:10:02.3]} 5. e5 {[%clk 0:09:57.1]} 5...
Nfd7 {[%clk 0:10:03.4]} 6. h4 {[%clk 0:09:56.3]} 6... h6 {[%clk 0:10:03.4]} 7.
Bxe7 {[%clk 0:09:56.2]} 7... Qxe7 {[%clk 0:10:04.2]} 8. f4 {[%clk 0:09:41.6]}
8... a6 {[%clk 0:10:02.9]} 9. Nf3 {[%clk 0:09:41.2]} 9... c5 {[%clk 0:10:03.9]}
10. Qd2 {[%clk 0:09:37.1]} 10... Nc6 {[%clk 0:10:04.3]} 11. O-O-O {[%clk
0:09:36.5]} 11... b5 {[%clk 0:10:03.4]} 12. g4 {[%clk 0:09:34.2]} 12... c4
{[%clk 0:09:58]} 13. f5 {[%clk 0:09:33.8]} 13... Bb7 {[%clk 0:09:41]} 14. Ne2
{[%clk 0:09:31.2]} 14... O-O-O {[%clk 0:09:35]} 15. Nf4 {[%clk 0:09:30.9]} 15...
Rhe8 {[%clk 0:09:21.6]} 16. Bh3 {[%clk 0:09:31.5]} 16... Kb8 {[%clk 0:09:19.6]}
17. g5 {[%clk 0:09:27.2]} 17... Nf8 {[%clk 0:09:16.1]} 18. Nh5 {[%clk
0:09:12.5]} 18... f6 {[%clk 0:08:10.8]} 19. gxf6 {[%clk 0:09:01.2]} 19... gxf6
{[%clk 0:08:10.1]} 20. Nxf6 {[%clk 0:09:03.1]} 20... exf5 {[%clk 0:08:06.3]} 21.
Bxf5 {[%clk 0:08:51.4]} 21... b4 {[%clk 0:08:04.5]} 22. Nxe8 {[%clk 0:08:51.3]}
22... Rxe8 {[%clk 0:07:57.8]} 23. Qxh6 {[%clk 0:08:51.1]} 23... Ka8 {[%clk
0:07:49.7]} 24. Qd6 {[%clk 0:08:44]} 24... Qf7 {[%clk 0:07:50.3]} 25. Qf6 {[%clk
0:08:42.6]} 25... Qc7 {[%clk 0:07:40.4]} 26. h5 {[%clk 0:08:40.9]} 26... c3
{[%clk 0:07:40.6]} 27. h6 {[%clk 0:08:41.2]} 27... Qa5 {[%clk 0:07:32.8]} 28.
Kb1 {[%clk 0:08:39.7]} 28... cxb2 {[%clk 0:07:27.5]} 29. h7 {[%clk 0:08:34.7]}
29... Nxh7 {[%clk 0:05:55.5]} 30. Rxh7 {[%clk 0:08:31.6]} 30... b3 {[%clk
0:05:08.6]} 31. cxb3 {[%clk 0:08:30]} 31... Qc3 {[%clk 0:05:08.8]} 32. Ng5
{[%clk 0:07:57.8]} 32... Nxd4 {[%clk 0:04:31.9]} 33. Qb6 {[%clk 0:07:52.6]} 1-0

[Event "GrandPrix_30.05"]
[Site "Chess.com"]
[Date "2020.05.30"]
[Round "5"]
[White "IwkooO"]
[Black "Mizner"]
[Result "1-0"]
[WhiteElo "2332"]
[BlackElo "2100"]
[TimeControl "600+2"]
[EndTime "10:15:11 PDT"]
[Termination "IwkooO won by resignation"]

1. e4 {[%clk 0:10:01.9]} 1... e6 {[%clk 0:10:00.4]} 2. d4 {[%clk 0:10:02.7]}
2... d5 {[%clk 0:10:02.3]} 3. Nd2 {[%clk 0:10:04.3]} 3... c5 {[%clk 0:10:02.6]}
4. exd5 {[%clk 0:10:03.7]} 4... Qxd5 {[%clk 0:10:02.6]} 5. Ngf3 {[%clk
0:10:05.4]} 5... cxd4 {[%clk 0:10:03.6]} 6. Bc4 {[%clk 0:10:07]} 6... Qc5 {[%clk
0:10:04.9]} 7. Qe2 {[%clk 0:09:36.1]} 7... Nc6 {[%clk 0:10:05.7]} 8. Nb3 {[%clk
0:09:36.7]} 8... Qb6 {[%clk 0:10:03.2]} 9. O-O {[%clk 0:09:37.9]} 9... Be7
{[%clk 0:10:02.7]} 10. a4 {[%clk 0:09:27.2]} 10... Bf6 {[%clk 0:09:56.2]} 11. a5
{[%clk 0:08:28.9]} 11... Qc7 {[%clk 0:09:56.3]} 12. Rd1 {[%clk 0:08:24.5]} 12...
Nge7 {[%clk 0:09:50.4]} 13. Nbxd4 {[%clk 0:08:18.3]} 13... Nxd4 {[%clk
0:09:52.3]} 14. Nxd4 {[%clk 0:08:19.1]} 14... a6 {[%clk 0:09:52.6]} 15. c3
{[%clk 0:08:11.3]} 15... O-O {[%clk 0:09:52.2]} 16. Nf3 {[%clk 0:07:58.2]} 16...
Bd7 {[%clk 0:09:36.9]} 17. Be3 {[%clk 0:07:54.3]} 17... Bc6 {[%clk 0:09:21.9]}
18. Bb6 {[%clk 0:07:54.9]} 18... Qf4 {[%clk 0:09:20.7]} 19. Nd4 {[%clk
0:07:49.9]} 19... Bd5 {[%clk 0:09:10.3]} 20. Bd3 {[%clk 0:07:39.4]} 20... e5
{[%clk 0:08:14]} 21. g3 {[%clk 0:07:04.3]} 21... Qg5 {[%clk 0:07:50.7]} 22. h4
{[%clk 0:06:55.3]} 22... Qh6 {[%clk 0:07:49.9]} 23. Nf5 {[%clk 0:06:56.3]} 23...
Nxf5 {[%clk 0:07:44.6]} 24. Bxf5 {[%clk 0:06:58.2]} 24... Bc6 {[%clk 0:07:33.8]}
25. Be3 {[%clk 0:06:57.4]} 25... g5 {[%clk 0:07:33.4]} 26. Qg4 {[%clk
0:06:56.4]} 26... Kh8 {[%clk 0:07:06.3]} 27. Rd6 {[%clk 0:06:36.9]} 27... Rg8
{[%clk 0:06:39.3]} 28. Rad1 {[%clk 0:06:24.8]} 28... Qg7 {[%clk 0:06:16.4]} 29.
Qh5 {[%clk 0:05:58.6]} 29... Rad8 {[%clk 0:05:40.5]} 30. hxg5 {[%clk 0:05:43]}
1-0

[Event "GrandPrix_30.05"]
[Site "Chess.com"]
[Date "2020.05.30"]
[Round "5"]
[White "DanielDardha2005"]
[Black "Karateloru"]
[Result "1-0"]
[WhiteElo "2344"]
[BlackElo "2166"]
[TimeControl "600+2"]
[EndTime "10:16:34 PDT"]
[Termination "DanielDardha2005 won by resignation"]

1. Nf3 {[%clk 0:10:01.9]} 1... f5 {[%clk 0:09:59.6]} 2. d3 {[%clk 0:10:02.4]}
2... Nf6 {[%clk 0:10:00.3]} 3. e4 {[%clk 0:10:00.2]} 3... d6 {[%clk 0:10:01.4]}
4. exf5 {[%clk 0:09:58.1]} 4... Bxf5 {[%clk 0:10:01.8]} 5. d4 {[%clk 0:09:59.2]}
5... Nbd7 {[%clk 0:09:55.6]} 6. Bd3 {[%clk 0:09:58.1]} 6... e6 {[%clk
0:09:53.7]} 7. O-O {[%clk 0:09:54.5]} 7... Be7 {[%clk 0:09:54.4]} 8. Bxf5 {[%clk
0:09:50.4]} 8... exf5 {[%clk 0:09:53.8]} 9. d5 {[%clk 0:09:38.6]} 9... Nf8
{[%clk 0:09:10.7]} 10. c4 {[%clk 0:09:35.9]} 10... Qd7 {[%clk 0:09:10.9]} 11.
Nc3 {[%clk 0:09:35.7]} 11... c5 {[%clk 0:09:04.9]} 12. Re1 {[%clk 0:09:28.5]}
12... Ng6 {[%clk 0:09:01.9]} 13. Ng5 {[%clk 0:09:19.5]} 13... O-O {[%clk
0:09:01.7]} 14. b3 {[%clk 0:09:15.2]} 14... Ng4 {[%clk 0:07:40.7]} 15. Ne6
{[%clk 0:09:13.1]} 15... Bf6 {[%clk 0:07:14.7]} 16. Nxf8 {[%clk 0:09:12.7]}
16... Rxf8 {[%clk 0:07:15.8]} 17. Bb2 {[%clk 0:09:10.2]} 17... Bd4 {[%clk
0:07:16.1]} 18. Re2 {[%clk 0:08:51.5]} 18... Qd8 {[%clk 0:06:44.2]} 19. h3
{[%clk 0:08:32.4]} 19... Nf4 {[%clk 0:04:52.8]} 20. hxg4 {[%clk 0:07:38.4]}
20... Nxe2+ {[%clk 0:03:55.2]} 21. Qxe2 {[%clk 0:07:40.3]} 21... fxg4 {[%clk
0:03:56.6]} 22. Ne4 {[%clk 0:07:40.8]} 22... Bxb2 {[%clk 0:02:33.7]} 23. Qxb2
{[%clk 0:07:42.7]} 23... Qe7 {[%clk 0:02:33]} 24. Re1 {[%clk 0:07:41.8]} 24...
Rf4 {[%clk 0:02:30.8]} 25. Qe2 {[%clk 0:07:30.5]} 25... h5 {[%clk 0:02:30.2]}
26. Ng3 {[%clk 0:07:27.8]} 26... Qxe2 {[%clk 0:02:25.5]} 27. Rxe2 {[%clk
0:07:29.7]} 27... h4 {[%clk 0:02:26.7]} 28. Ne4 {[%clk 0:07:30]} 1-0

[Event "GrandPrix_30.05"]
[Site "Chess.com"]
[Date "2020.05.30"]
[Round "5"]
[White "temus_galaktionov"]
[Black "Azatic"]
[Result "1-0"]
[WhiteElo "2608"]
[BlackElo "2378"]
[TimeControl "600+2"]
[EndTime "10:16:59 PDT"]
[Termination "temus_galaktionov won by resignation"]

1. d4 {[%clk 0:10:01.9]} 1... Nf6 {[%clk 0:10:00.9]} 2. Nf3 {[%clk 0:10:03.1]}
2... g6 {[%clk 0:10:01.6]} 3. c4 {[%clk 0:10:03.6]} 3... Bg7 {[%clk 0:10:02.5]}
4. Nc3 {[%clk 0:10:05.5]} 4... O-O {[%clk 0:10:03.5]} 5. e4 {[%clk 0:10:06.3]}
5... d6 {[%clk 0:10:02.4]} 6. Be2 {[%clk 0:10:07.8]} 6... e5 {[%clk 0:10:02.8]}
7. O-O {[%clk 0:10:08.3]} 7... Na6 {[%clk 0:10:03.8]} 8. Be3 {[%clk 0:10:08.7]}
8... Ng4 {[%clk 0:10:02.9]} 9. Bg5 {[%clk 0:10:09]} 9... Qe8 {[%clk 0:10:03.8]}
10. h3 {[%clk 0:10:07]} 10... h6 {[%clk 0:09:45.8]} 11. Bh4 {[%clk 0:09:46.3]}
11... exd4 {[%clk 0:09:22]} 12. Nxd4 {[%clk 0:09:48.2]} 12... Ne5 {[%clk
0:09:22.4]} 13. Qd2 {[%clk 0:09:30.8]} 13... Nc6 {[%clk 0:08:35.5]} 14. Ndb5
{[%clk 0:09:21.8]} 14... g5 {[%clk 0:07:44.1]} 15. Bg3 {[%clk 0:09:20.1]} 15...
f5 {[%clk 0:07:45]} 16. exf5 {[%clk 0:08:54.5]} 16... Bxf5 {[%clk 0:07:46.9]}
17. Rae1 {[%clk 0:08:55.2]} 17... Qd7 {[%clk 0:07:30.8]} 18. Nd5 {[%clk
0:08:55.7]} 18... Ne5 {[%clk 0:06:29.7]} 19. Nd4 {[%clk 0:08:55.3]} 19... Rae8
{[%clk 0:05:40.8]} 20. Nxf5 {[%clk 0:08:47.1]} 20... Qxf5 {[%clk 0:05:42.7]} 21.
b4 {[%clk 0:08:47.8]} 21... c6 {[%clk 0:05:03.6]} 22. Ne3 {[%clk 0:08:48.3]}
22... Qg6 {[%clk 0:05:03.1]} 23. Rd1 {[%clk 0:08:43.8]} 23... Rd8 {[%clk
0:04:59.8]} 24. Ng4 {[%clk 0:08:34.1]} 24... Nc7 {[%clk 0:04:42.4]} 25. Nxe5
{[%clk 0:08:20.2]} 25... dxe5 {[%clk 0:04:23.1]} 26. Qxd8 {[%clk 0:08:09.1]}
26... Rxd8 {[%clk 0:04:25]} 27. Rxd8+ {[%clk 0:08:09.7]} 27... Bf8 {[%clk
0:04:08.9]} 28. Bxe5 {[%clk 0:07:51]} 28... Ne6 {[%clk 0:04:09.9]} 29. Bd3
{[%clk 0:07:43.3]} 29... Qh5 {[%clk 0:03:51.9]} 30. Rd7 {[%clk 0:07:29.5]} 30...
Bxb4 {[%clk 0:03:29.5]} 31. Bf5 {[%clk 0:07:11.2]} 31... Qe8 {[%clk 0:03:09.8]}
32. Rfd1 {[%clk 0:07:06.3]} 32... Ba5 {[%clk 0:02:40.6]} 33. Bh7+ {[%clk
0:07:06.7]} 33... Kf8 {[%clk 0:02:41.5]} 34. Bd6+ {[%clk 0:07:07.8]} 1-0

[Event "GrandPrix_30.05"]
[Site "Chess.com"]
[Date "2020.05.30"]
[Round "5"]
[White "iceboy88"]
[Black "PotapovaM"]
[Result "0-1"]
[WhiteElo "2257"]
[BlackElo "2198"]
[TimeControl "600+2"]
[EndTime "10:17:14 PDT"]
[Termination "PotapovaM won by checkmate"]

1. Nf3 {[%clk 0:10:01.9]} 1... d5 {[%clk 0:09:58]} 2. d4 {[%clk 0:10:00]} 2...
Nf6 {[%clk 0:09:42.4]} 3. c4 {[%clk 0:10:01]} 3... e6 {[%clk 0:09:43.5]} 4. Nc3
{[%clk 0:10:01]} 4... Bb4 {[%clk 0:09:41.4]} 5. cxd5 {[%clk 0:09:59.8]} 5...
exd5 {[%clk 0:09:41.6]} 6. Bf4 {[%clk 0:10:00.7]} 6... O-O {[%clk 0:09:10.3]} 7.
e3 {[%clk 0:09:59.7]} 7... c6 {[%clk 0:08:40.1]} 8. Bd3 {[%clk 0:09:58.4]} 8...
Bg4 {[%clk 0:08:32.4]} 9. Qc2 {[%clk 0:09:47.3]} 9... Nbd7 {[%clk 0:08:25.8]}
10. Ne5 {[%clk 0:09:19.1]} 10... Bh5 {[%clk 0:08:14.7]} 11. h3 {[%clk
0:08:54.3]} 11... Bg6 {[%clk 0:08:12.9]} 12. Nxg6 {[%clk 0:08:53.4]} 12... hxg6
{[%clk 0:08:12.5]} 13. a3 {[%clk 0:08:38.6]} 13... Be7 {[%clk 0:07:49.9]} 14.
O-O {[%clk 0:08:25.5]} 14... Re8 {[%clk 0:07:46]} 15. b4 {[%clk 0:08:25.5]}
15... a5 {[%clk 0:07:39.9]} 16. b5 {[%clk 0:08:21.1]} 16... c5 {[%clk
0:07:41.1]} 17. dxc5 {[%clk 0:08:08.9]} 17... Nxc5 {[%clk 0:07:36.2]} 18. Rfd1
{[%clk 0:07:19.9]} 18... Rc8 {[%clk 0:07:07.9]} 19. Qb2 {[%clk 0:07:17]} 19...
Bd6 {[%clk 0:06:57.6]} 20. Bxd6 {[%clk 0:07:10.7]} 20... Qxd6 {[%clk 0:06:59.5]}
21. Be2 {[%clk 0:07:04]} 21... Qe5 {[%clk 0:06:55.6]} 22. Rac1 {[%clk
0:06:50.6]} 22... Nce4 {[%clk 0:06:34.7]} 23. Rd4 {[%clk 0:06:50.7]} 23... Nxf2
{[%clk 0:06:24.6]} 24. Nd1 {[%clk 0:03:32.7]} 24... Nxd1 {[%clk 0:06:07]} 25.
Rcxd1 {[%clk 0:03:03.1]} 25... Qxe3+ {[%clk 0:06:06.1]} 26. Kf1 {[%clk
0:03:02.3]} 26... Ne4 {[%clk 0:06:02.4]} 27. Bf3 {[%clk 0:02:59.4]} 27... Ng3#
{[%clk 0:06:02.4]} 0-1

[Event "GrandPrix_30.05"]
[Site "Chess.com"]
[Date "2020.05.30"]
[Round "5"]
[White "Cocolino12"]
[Black "StephenDedalus83"]
[Result "1-0"]
[WhiteElo "2218"]
[BlackElo "2082"]
[TimeControl "600+2"]
[EndTime "10:17:31 PDT"]
[Termination "Cocolino12 won by resignation"]

1. e4 {[%clk 0:10:01.9]} 1... c5 {[%clk 0:09:59.8]} 2. Nf3 {[%clk 0:10:02.1]}
2... Nc6 {[%clk 0:09:56.7]} 3. c3 {[%clk 0:10:02.1]} 3... Nf6 {[%clk 0:09:55.9]}
4. e5 {[%clk 0:10:01.7]} 4... Nd5 {[%clk 0:09:56.9]} 5. d4 {[%clk 0:10:01.6]}
5... cxd4 {[%clk 0:09:57.3]} 6. cxd4 {[%clk 0:10:01.2]} 6... d6 {[%clk
0:09:57.7]} 7. Bc4 {[%clk 0:10:00.4]} 7... dxe5 {[%clk 0:09:58.6]} 8. Bxd5
{[%clk 0:09:54.7]} 8... Qxd5 {[%clk 0:09:58.7]} 9. Nc3 {[%clk 0:09:54.8]} 9...
Qd6 {[%clk 0:09:59.5]} 10. d5 {[%clk 0:09:54.2]} 10... Nd4 {[%clk 0:10:00.3]}
11. Nxd4 {[%clk 0:09:51.9]} 11... exd4 {[%clk 0:10:02.2]} 12. Qxd4 {[%clk
0:09:51.8]} 12... e5 {[%clk 0:10:03.3]} 13. Qc4 {[%clk 0:09:11.7]} 13... Bd7
{[%clk 0:09:56.5]} 14. O-O {[%clk 0:09:08.4]} 14... Rc8 {[%clk 0:09:56.5]} 15.
Qb3 {[%clk 0:08:54.3]} 15... Qb4 {[%clk 0:09:47.7]} 16. Be3 {[%clk 0:08:44.9]}
16... a6 {[%clk 0:09:36.4]} 17. f4 {[%clk 0:08:25]} 17... Qxb3 {[%clk
0:09:25.2]} 18. axb3 {[%clk 0:08:26.9]} 18... exf4 {[%clk 0:09:26]} 19. Rxf4
{[%clk 0:08:21.6]} 19... f5 {[%clk 0:09:21.4]} 20. Bd4 {[%clk 0:08:14.4]} 20...
Kf7 {[%clk 0:09:11.3]} 21. g4 {[%clk 0:08:11.2]} 21... Bd6 {[%clk 0:08:51.6]}
22. Rf2 {[%clk 0:08:10.5]} 22... Rhe8 {[%clk 0:08:26]} 23. gxf5 {[%clk
0:08:06.6]} 23... Be5 {[%clk 0:08:26]} 24. Rd1 {[%clk 0:07:52.9]} 24... Bxd4
{[%clk 0:08:24]} 25. Rxd4 {[%clk 0:07:54.8]} 25... Re5 {[%clk 0:08:23.9]} 26.
Ne4 {[%clk 0:07:40.3]} 26... Rc1+ {[%clk 0:08:20.2]} 27. Kg2 {[%clk 0:07:33.2]}
27... h6 {[%clk 0:08:00.3]} 28. f6 {[%clk 0:07:14.2]} 28... g5 {[%clk
0:07:49.2]} 29. Rc4 {[%clk 0:06:53.5]} 29... Rxc4 {[%clk 0:07:24.6]} 30. Nd6+
{[%clk 0:06:52.7]} 30... Kf8 {[%clk 0:07:25.2]} 31. bxc4 {[%clk 0:06:52]} 31...
Re3 {[%clk 0:07:09.6]} 32. Nf5 {[%clk 0:06:06.2]} 32... Bxf5 {[%clk 0:06:08]}
33. Rxf5 {[%clk 0:06:05.7]} 33... Kf7 {[%clk 0:06:09.6]} 34. d6 {[%clk
0:05:48.4]} 34... Rd3 {[%clk 0:06:05]} 35. c5 {[%clk 0:05:48.9]} 35... a5 {[%clk
0:06:01.1]} 36. Kf2 {[%clk 0:05:40.6]} 36... a4 {[%clk 0:05:34.5]} 37. Ke2
{[%clk 0:05:32.8]} 37... Rd4 {[%clk 0:05:34]} 38. Ke3 {[%clk 0:05:28.7]} 38...
Rd1 {[%clk 0:05:34.6]} 39. Ke4 {[%clk 0:05:22.5]} 39... Rd2 {[%clk 0:05:31.5]}
40. Rd5 {[%clk 0:05:16.8]} 40... Re2+ {[%clk 0:05:28.5]} 41. Kf3 {[%clk
0:05:17.8]} 41... Re8 {[%clk 0:05:26]} 42. d7 {[%clk 0:05:19.1]} 42... Rd8
{[%clk 0:05:25.4]} 43. Rd6 {[%clk 0:05:20.5]} 43... h5 {[%clk 0:05:22.8]} 44.
Ke4 {[%clk 0:05:11.5]} 44... Kg6 {[%clk 0:05:22.6]} 45. Kd5 {[%clk 0:05:05.3]}
45... g4 {[%clk 0:05:20.6]} 46. c6 {[%clk 0:05:03.3]} 46... bxc6+ {[%clk
0:05:20.6]} 47. Kxc6 {[%clk 0:05:04.6]} 47... h4 {[%clk 0:05:20.7]} 48. Kc7
{[%clk 0:05:05.3]} 1-0

[Event "GrandPrix_30.05"]
[Site "Chess.com"]
[Date "2020.05.30"]
[Round "5"]
[White "ZEN-22"]
[Black "Grandelicious"]
[Result "0-1"]
[WhiteElo "2203"]
[BlackElo "2559"]
[TimeControl "600+2"]
[EndTime "10:17:33 PDT"]
[Termination "Grandelicious won by resignation"]

1. e4 {[%clk 0:10:01.6]} 1... c5 {[%clk 0:10:00.6]} 2. b4 {[%clk 0:09:53.6]}
2... cxb4 {[%clk 0:09:55.8]} 3. a3 {[%clk 0:09:52.3]} 3... bxa3 {[%clk
0:09:25.1]} 4. Nxa3 {[%clk 0:09:51.9]} 4... d6 {[%clk 0:09:22.1]} 5. d4 {[%clk
0:09:35.5]} 5... Nf6 {[%clk 0:09:17.5]} 6. Bd3 {[%clk 0:09:35.1]} 6... g6 {[%clk
0:09:12.9]} 7. h3 {[%clk 0:09:12.7]} 7... Bg7 {[%clk 0:09:12.8]} 8. Nf3 {[%clk
0:09:11.5]} 8... O-O {[%clk 0:09:12.6]} 9. c4 {[%clk 0:09:07.8]} 9... e5 {[%clk
0:09:01.7]} 10. Nb5 {[%clk 0:08:52.7]} 10... exd4 {[%clk 0:08:48.9]} 11. Nxa7
{[%clk 0:08:23.8]} 11... Bd7 {[%clk 0:07:20.9]} 12. O-O {[%clk 0:07:58.2]} 12...
Re8 {[%clk 0:06:20.7]} 13. Re1 {[%clk 0:07:45.9]} 13... Na6 {[%clk 0:05:55.7]}
14. Nb5 {[%clk 0:07:37.4]} 14... Bxb5 {[%clk 0:05:56.8]} 15. cxb5 {[%clk
0:07:34.2]} 15... Nc5 {[%clk 0:05:57.9]} 16. Rxa8 {[%clk 0:07:16.7]} 16... Qxa8
{[%clk 0:05:59.8]} 17. Bb2 {[%clk 0:06:01.3]} 17... Nfxe4 {[%clk 0:05:38.7]} 18.
Bxe4 {[%clk 0:05:45.9]} 18... Rxe4 {[%clk 0:05:36.4]} 19. Rxe4 {[%clk 0:05:44]}
19... Nxe4 {[%clk 0:05:38.3]} 20. Bxd4 {[%clk 0:05:44.8]} 20... Qa2 {[%clk
0:04:52.7]} 21. Kh2 {[%clk 0:05:12.3]} 21... Qd5 {[%clk 0:04:23.9]} 22. Kg1
{[%clk 0:04:37.3]} 22... Nc3 {[%clk 0:04:12.8]} 0-1

[Event "GrandPrix_30.05"]
[Site "Chess.com"]
[Date "2020.05.30"]
[Round "5"]
[White "EvgenyPigusov"]
[Black "Hakob-Hakobyan-Arm"]
[Result "1-0"]
[WhiteElo "2318"]
[BlackElo "2143"]
[TimeControl "600+2"]
[EndTime "10:17:53 PDT"]
[Termination "EvgenyPigusov won by resignation"]

1. Nf3 {[%clk 0:10:01.9]} 1... d5 {[%clk 0:09:59.9]} 2. g3 {[%clk 0:09:56]} 2...
c6 {[%clk 0:10:00.9]} 3. c4 {[%clk 0:09:53.6]} 3... Bg4 {[%clk 0:10:01.8]} 4.
Bg2 {[%clk 0:09:51]} 4... e6 {[%clk 0:10:03.1]} 5. cxd5 {[%clk 0:09:49.7]} 5...
Bxf3 {[%clk 0:10:03.8]} 6. Bxf3 {[%clk 0:09:49.7]} 6... cxd5 {[%clk 0:10:05.7]}
7. e4 {[%clk 0:09:40.5]} 7... Nf6 {[%clk 0:09:57.7]} 8. exd5 {[%clk 0:09:38.2]}
8... Nxd5 {[%clk 0:09:57.7]} 9. Nc3 {[%clk 0:09:38.5]} 9... Nxc3 {[%clk
0:09:27.6]} 10. dxc3 {[%clk 0:09:07.6]} 10... Qxd1+ {[%clk 0:09:29.5]} 11. Kxd1
{[%clk 0:09:07.8]} 11... Nc6 {[%clk 0:09:29.5]} 12. Be3 {[%clk 0:09:07.3]} 12...
Be7 {[%clk 0:09:20.6]} 13. Ke2 {[%clk 0:08:56.8]} 13... O-O-O {[%clk 0:08:26.9]}
14. Bxc6 {[%clk 0:08:11.8]} 14... bxc6 {[%clk 0:08:28.8]} 15. Bxa7 {[%clk
0:08:12.6]} 15... c5 {[%clk 0:08:27.4]} 16. b4 {[%clk 0:06:50.4]} 16... cxb4
{[%clk 0:07:50.7]} 17. cxb4 {[%clk 0:06:49.2]} 17... Bxb4 {[%clk 0:07:52.6]} 18.
Rab1 {[%clk 0:06:22.7]} 18... Rd2+ {[%clk 0:06:52]} 19. Kf3 {[%clk 0:06:19]}
19... Rxa2 {[%clk 0:06:48.6]} 20. Bd4 {[%clk 0:06:09.3]} 20... Bd6 {[%clk
0:06:36.8]} 21. Rhc1+ {[%clk 0:05:53.1]} 21... Kd8 {[%clk 0:06:34.7]} 22. Bxg7
{[%clk 0:05:50.8]} 22... Re8 {[%clk 0:06:00.6]} 23. Bf6+ {[%clk 0:05:35.6]}
23... Re7 {[%clk 0:06:01.8]} 24. Rb7 {[%clk 0:05:01.1]} 24... Ra5 {[%clk
0:05:53.5]} 25. Kg2 {[%clk 0:04:49.2]} 25... Rf5 {[%clk 0:05:39]} 26. Bxe7+
{[%clk 0:04:46.8]} 26... Bxe7 {[%clk 0:05:40.9]} 27. Ra1 {[%clk 0:04:38.2]}
27... Ke8 {[%clk 0:05:38.2]} 28. Rb8+ {[%clk 0:04:21.7]} 28... Bd8 {[%clk
0:05:39]} 29. Rd1 {[%clk 0:04:19.4]} 29... Rd5 {[%clk 0:05:39.5]} 30. Rxd5
{[%clk 0:04:19.4]} 30... exd5 {[%clk 0:05:41.4]} 31. Rb5 {[%clk 0:04:19]} 31...
d4 {[%clk 0:05:41.4]} 32. Rh5 {[%clk 0:04:16.9]} 32... Bb6 {[%clk 0:05:27]} 33.
Kf1 {[%clk 0:04:14.1]} 33... Ke7 {[%clk 0:05:27]} 34. f3 {[%clk 0:04:10.4]}
34... Ke6 {[%clk 0:05:04.5]} 35. Ke2 {[%clk 0:04:08.6]} 1-0

[Event "GrandPrix_30.05"]
[Site "Chess.com"]
[Date "2020.05.30"]
[Round "5"]
[White "Natalya_Buksa"]
[Black "guylevin1"]
[Result "1-0"]
[WhiteElo "2081"]
[BlackElo "2095"]
[TimeControl "600+2"]
[EndTime "10:18:11 PDT"]
[Termination "Natalya_Buksa won by resignation"]

1. d4 {[%clk 0:10:01.9]} 1... Nf6 {[%clk 0:10:00.7]} 2. Nc3 {[%clk 0:09:59.7]}
2... d5 {[%clk 0:09:56.4]} 3. Bf4 {[%clk 0:10:00.7]} 3... g6 {[%clk 0:09:53]} 4.
e3 {[%clk 0:10:01.4]} 4... Bg7 {[%clk 0:09:54]} 5. h4 {[%clk 0:10:01.9]} 5... h5
{[%clk 0:09:53.6]} 6. Nf3 {[%clk 0:10:01.5]} 6... Bg4 {[%clk 0:09:53]} 7. Be2
{[%clk 0:10:02.8]} 7... c6 {[%clk 0:09:53.7]} 8. Ne5 {[%clk 0:10:03.9]} 8...
Bxe2 {[%clk 0:09:53.4]} 9. Qxe2 {[%clk 0:10:05.8]} 9... Nbd7 {[%clk 0:09:54.7]}
10. O-O-O {[%clk 0:10:06.5]} 10... Qa5 {[%clk 0:09:26.9]} 11. Kb1 {[%clk
0:09:45.8]} 11... Nxe5 {[%clk 0:08:47.9]} 12. Bxe5 {[%clk 0:09:44.7]} 12...
O-O-O {[%clk 0:08:47.8]} 13. f3 {[%clk 0:09:35.6]} 13... Ne8 {[%clk 0:08:41.2]}
14. Bxg7 {[%clk 0:09:31.1]} 14... Nxg7 {[%clk 0:08:43.1]} 15. e4 {[%clk
0:09:32.8]} 15... Ne6 {[%clk 0:08:17]} 16. Qe3 {[%clk 0:09:17.7]} 16... Rd7
{[%clk 0:07:16.9]} 17. Rd3 {[%clk 0:09:13.5]} 17... dxe4 {[%clk 0:06:50.3]} 18.
fxe4 {[%clk 0:09:09.8]} 18... Qb6 {[%clk 0:06:50.2]} 19. Rhd1 {[%clk 0:09:09.2]}
19... Rhd8 {[%clk 0:06:49.2]} 20. Ne2 {[%clk 0:09:10]} 20... Nc7 {[%clk
0:05:36.8]} 21. Qf3 {[%clk 0:08:51.4]} 21... e6 {[%clk 0:05:33.4]} 22. c4 {[%clk
0:08:17.4]} 22... Na6 {[%clk 0:04:57.6]} 23. a3 {[%clk 0:08:17.1]} 23... Qa5
{[%clk 0:04:27]} 24. Qe3 {[%clk 0:08:12.9]} 24... e5 {[%clk 0:03:37.6]} 25. d5
{[%clk 0:08:04.7]} 25... Qb6 {[%clk 0:03:36.9]} 26. Qxb6 {[%clk 0:07:40.1]}
26... axb6 {[%clk 0:03:38.8]} 27. Nc3 {[%clk 0:07:35.9]} 27... Nc5 {[%clk
0:03:31.5]} 28. Rf3 {[%clk 0:07:36.7]} 28... Nb3 {[%clk 0:03:28.2]} 29. Na4
{[%clk 0:07:21.5]} 29... Nd4 {[%clk 0:03:28.8]} 30. Nxb6+ {[%clk 0:07:21.4]}
30... Kc7 {[%clk 0:03:30.1]} 31. Nxd7 {[%clk 0:07:22.1]} 31... Nxf3 {[%clk
0:03:30.8]} 32. gxf3 {[%clk 0:07:21.6]} 32... Rxd7 {[%clk 0:03:31.1]} 33. Kc2
{[%clk 0:07:22.7]} 33... c5 {[%clk 0:03:32.3]} 34. b4 {[%clk 0:07:22.6]} 34...
b6 {[%clk 0:03:15.1]} 35. bxc5 {[%clk 0:07:23.1]} 35... bxc5 {[%clk 0:03:16.7]}
36. Rb1 {[%clk 0:07:24.3]} 36... Rd6 {[%clk 0:03:12.6]} 37. Rb5 {[%clk
0:07:24.7]} 37... Rf6 {[%clk 0:03:13.7]} 38. Rxc5+ {[%clk 0:07:24.9]} 38... Kd7
{[%clk 0:03:13.3]} 39. Ra5 {[%clk 0:07:26.1]} 39... Rxf3 {[%clk 0:03:14.3]} 40.
c5 {[%clk 0:07:27.5]} 40... Re3 {[%clk 0:03:05]} 41. Ra7+ {[%clk 0:07:23.2]}
41... Kc8 {[%clk 0:03:06.1]} 42. Rxf7 {[%clk 0:07:04.1]} 42... Rxe4 {[%clk
0:03:07.1]} 43. Kc3 {[%clk 0:07:05]} 43... Rxh4 {[%clk 0:03:02.6]} 44. d6 {[%clk
0:06:57.5]} 44... Rd4 {[%clk 0:03:01.6]} 45. Re7 {[%clk 0:06:56.4]} 45... Ra4
{[%clk 0:02:53.3]} 46. c6 {[%clk 0:06:54.2]} 46... Rxa3+ {[%clk 0:02:40.8]} 47.
Kb4 {[%clk 0:06:54.2]} 1-0